{"text_format":"3","workbook":"xlsx","n_sheets":1,"sheets":["Sheet1"],"read":"whole","date_system":"1900"}

{"sheet":"Sheet1","index":0,"n_rows":38,"n_cols":15,"rows_kept":38,"merged":[[1,0,1,14],[2,0,2,14],[3,0,4,0],[3,1,4,1],[3,2,4,2],[3,3,4,3],[3,4,4,4],[3,5,4,5],[3,6,4,6],[3,7,4,7],[3,8,3,12],[11,1,13,1],[14,1,16,1],[17,1,20,1],[21,1,26,1],[27,1,30,1],[31,1,32,1],[31,12,32,12],[33,1,34,1],[33,12,34,12],[35,1,36,1],[35,12,36,12]]}
["附件1"]
["梧州市万秀区2024年直接面试招聘事业单位（非中小学教师岗位）人员计划表"]
[]
["岗位序号","主管部门","招聘单位","单位性质","招聘岗位名称","岗位类别及等级","用人方式","招聘人数","招聘岗位资格条件",{"$nulls":5},"联系方式"]
[{"$nulls":8},"所学专业","学历","学位","年龄","其他条件","备注","咨询电话"]
[1,2,3,4,5,7,8,10,11,12,13,14,20,null,29]
[1,"梧州市万秀区统战部","梧州市万秀区民族宗教服务中心","全额拨款","管理人员","管理九级","实名编制",1,"中国汉语言文学及文秘类","本科及以上","学士及以上","18-35周岁","广西辖区户籍","在本单位最低服务年限3年","0774-3886628"]
[2,"梧州市万秀区统战部","梧州市万秀区民族宗教服务中心","全额拨款","管理人员","管理九级","实名编制",1,"民族学类、新闻传播学类、哲学类","本科及以上","学士及以上","18-35周岁","广西辖区户籍",{"$f":"N7","v":"在本单位最低服务年限3年"},{"$f":"O7","v":"0774-3886628"}]
[3,"梧州市万秀区财政局","梧州市万秀区财政投资评审中心","全额拨款","专业技术人员","专业技术十二级","实名编制",2,"会计学类","本科及以上","学士及以上","18-35周岁","梧州辖区户籍","在本单位最低服务年限3年","0774-3886628"]
[4,"梧州市万秀区人力资源和社会保障局","梧州市万秀区劳动人事争议仲裁院","全额拨款","管理人员","管理九级","实名编制",1,"法学类","本科及以上","学士及以上","18-35周岁","广西辖区户籍","在本单位最低服务年限3年","0774-3886628"]
[5,"梧州市万秀区卫生健康局","梧州市万秀区疾病预防控制中心","全额拨款","专业技术人员","专业技术十二级","实名编制",1,"会计学类","本科及以上","学士及以上","18-35周岁","广西辖区户籍","在本单位最低服务年限3年","0774-3886628"]
[6,"梧州市万秀区人民政府城南街道办事处","梧州市万秀区城南街道党群服务中心","全额拨款","管理人员","管理九级","实名编制",2,"中国汉语言文学及文秘类、新闻传播学类",{"$f":"J11","v":"本科及以上"},"学士及以上","18-35周岁","梧州辖区户籍",{"$f":"N11","v":"在本单位最低服务年限3年"},{"$f":"O11","v":"0774-3886628"}]
[7,null,"梧州市万秀区城南街道经济发展服务中心","全额拨款","管理人员","管理九级","实名编制",1,"经济学类、计算机科学与技术类、土木类","本科及以上","学士及以上","18-35周岁","广西辖区户籍","在本单位最低服务年限3年","0774-3886628"]
[8,null,"梧州市万秀区城南街道社会综合治理中心","全额拨款","管理人员","管理九级","实名编制",1,"法学类、计算机科学与技术类、食品科学与工程类","本科及以上","学士及以上","18-35周岁","梧州辖区户籍","在本单位最低服务年限3年","0774-3886628"]
[9,"梧州市万秀区人民政府城北街道办事处","梧州市万秀区城北街道党群服务中心","全额拨款","管理人员","管理九级","实名编制",2,"计算机科学与技术类、新闻传播学类",{"$f":"J14","v":"本科及以上"},"学士及以上","18-35周岁",{"$f":"M14","v":"梧州辖区户籍"},"在本单位最低服务年限3年","0774-3886628"]
[10,null,"梧州市万秀区城北街道经济发展服务中心","全额拨款","专业技术人员","专业技术十二级","实名编制",1,"会计学类、金融学类、机械工程","本科及以上","学士及以上","18-35周岁",{"$f":"M15","v":"梧州辖区户籍"},"在本单位最低服务年限3年","0774-3886628"]
[11,null,"梧州市万秀区城北街道社会综合治理中心","全额拨款","管理人员","管理九级","实名编制",1,"\n法学类、新闻传播学类","本科及以上","学士及以上","18-35周岁",{"$f":"M16","v":"梧州辖区户籍"},"在本单位最低服务年限3年","0774-3886628"]
[12,"梧州市万秀区人民政府角嘴街道办事处","梧州市万秀区角嘴街道党群服务中心","全额拨款","管理人员","管理九级","实名编制",2,"社会学类、计算机科学与技术类",{"$f":"J17","v":"本科及以上"},"学士及以上","18-35周岁","广西辖区户籍",{"$f":"N17","v":"在本单位最低服务年限3年"},{"$f":"O17","v":"0774-3886628"}]
[13,null,"梧州市万秀区角嘴街道经济发展服务中心","全额拨款","专业技术人员","专业技术十二级","实名编制",1,"会计学类、金融学类","本科及以上","学士及以上","18-35周岁","梧州辖区户籍","在本单位最低服务年限3年","0774-3886628"]
[14,null,"梧州市万秀区角嘴街道经济发展服务中心","全额拨款","管理人员","管理九级","实名编制",1,"经济学类、电子信息工程、物流管理","本科及以上","学士及以上","18-35周岁","梧州辖区户籍","在本单位最低服务年限3年","0774-3886628"]
[15,null,"梧州市万秀区角嘴街道社会综合治理中心","全额拨款","管理人员","管理九级","实名编制",1,"安全科学与工程类、数据科学与大数据技术、信息安全","本科及以上","学士及以上","18-35周岁","广西辖区户籍","在本单位最低服务年限3年","0774-3886628"]
[16,"梧州市万秀区人民政府东兴街道办事处","梧州市万秀区东兴街道党群服务中心","全额拨款","管理人员","管理九级","实名编制",2,"哲学类、新闻传播学类",{"$f":"J21","v":"本科及以上"},"学士及以上","18-35周岁","梧州辖区户籍",{"$f":"N21","v":"在本单位最低服务年限3年"},{"$f":"O21","v":"0774-3886628"}]
[17,null,"梧州市万秀区东兴街道经济发展服务中心","全额拨款","专业技术人员","专业技术十二级","实名编制",1,"经济学类、会计学类","本科及以上","学士及以上","18-35周岁","广西辖区户籍","在本单位最低服务年限3年","0774-3886628"]
[18,null,"梧州市万秀区东兴街道经济发展服务中心","全额拨款","管理人员","管理九级","实名编制",1,"公共管理类、管理科学与工程类","本科及以上","学士及以上","18-35周岁","梧州辖区户籍","在本单位最低服务年限3年","0774-3886628"]
[19,null,"梧州市万秀区东兴街道经济发展服务中心","全额拨款","管理人员","管理九级","实名编制",1,"土木类、绘画、环境设计","本科及以上","学士及以上","18-35周岁","梧州辖区户籍","在本单位最低服务年限3年","0774-3886628"]
[20,null,"梧州市万秀区东兴街道社会综合治理中心","全额拨款","管理人员","管理九级","实名编制",1,"法学类、社会学类","本科及以上","学士及以上","18-35周岁","梧州辖区户籍","在本单位最低服务年限3年","0774-3886628"]
[21,null,"梧州市万秀区东兴街道社会综合治理中心","全额拨款","管理人员","管理九级","实名编制",1,"法学类、公共管理类","本科及以上","学士及以上","18-35周岁","梧州辖区户籍","在本单位最低服务年限3年","0774-3886628"]
[22,"梧州市万秀区人民政府富民街道办事处","梧州市万秀区富民街道党群服务中心","全额拨款","管理人员","管理九级","实名编制",2,"中国汉语言文学及文秘类、哲学类",{"$f":"J27","v":"本科及以上"},"学士及以上","18-35周岁",{"$f":"M27","v":"梧州辖区户籍"},"在本单位最低服务年限3年","0774-3886628"]
[23,null,"梧州市万秀区富民街道经济发展服务中心","全额拨款","管理人员","管理九级","实名编制",1,"会计学类、数据科学与大数据技术、服务科学与工程","本科及以上","学士及以上","18-35周岁","广西辖区户籍","在本单位最低服务年限3年","0774-3886628"]
[24,null,"梧州市万秀区富民街道经济发展服务中心","全额拨款","专业技术人员","专业技术十二级","实名编制",1,"经济学类、新闻传播学类、电子信息工程","本科及以上","学士及以上","18-35周岁",{"$f":"M29","v":"广西辖区户籍"},"在本单位最低服务年限3年","0774-3886628"]
[25,null,"梧州市万秀区富民街道社会综合治理中心","全额拨款","管理人员","管理九级","实名编制",1,"公共管理类、法学类、社会学类","本科及以上","学士及以上","18-35周岁",{"$f":"M30","v":"广西辖区户籍"},"在本单位最低服务年限3年","0774-3886628"]
[26,"梧州市万秀区城东镇人民政府","梧州市万秀区城东镇综合行政执法队","全额拨款","管理人员","管理九级","实名编制",1,"不限专业","本科及以上","学士及以上","18-35周岁","通过考试选拔方式参加梧州市万秀区基层项目服务期满且考核合格后3年内的服务基层项目人员。服务基层项目人员包括选聘高校毕业生到村任职工作（含社区党建工作组织员、聘用在基层岗位的“两新”组织党建工作组织员）、农村义务教育阶段学校教师特设岗位计划、“三支一扶”计划、大学生志愿服务西部计划项目人员。“服务期满”计算截止日期以2024年9月30日为准","在本单位最低服务年限3年","0774-3886628"]
[27,null,"梧州市万秀区城东镇党群企服务中心","全额拨款","管理人员","管理九级","实名编制",1,"不限专业","本科及以上","学士及以上","18-35周岁",null,"在本单位最低服务年限3年","0774-3886628"]
[28,"梧州市万秀区龙湖镇人民政府","梧州市万秀区龙湖镇乡村建设综合保障中心","全额拨款","管理人员","管理九级","实名编制",1,"不限专业","本科及以上","学士及以上","18-35周岁","通过考试选拔方式参加梧州市万秀区基层项目服务期满且考核合格后3年内的服务基层项目人员。服务基层项目人员包括选聘高校毕业生到村任职工作（含社区党建工作组织员、聘用在基层岗位的“两新”组织党建工作组织员）、农村义务教育阶段学校教师特设岗位计划、“三支一扶”计划、大学生志愿服务西部计划项目人员。“服务期满”计算截止日期以2024年9月30日为准","在本单位最低服务年限3年","0774-3886628"]
[29,null,"梧州市万秀区龙湖镇党群服务中心\n","全额拨款","管理人员","管理九级","实名编制",1,"不限专业","本科及以上","学士及以上","18-35周岁",null,"在本单位最低服务年限3年","0774-3886628"]
[30,"梧州市万秀区夏郢镇人民政府","梧州市万秀区夏郢镇党群服务中心","全额拨款","管理人员","管理九级","实名编制",1,"不限专业","本科及以上","学士及以上","18-35周岁","通过考试选拔方式参加梧州市万秀区基层项目服务期满且考核合格后3年内的服务基层项目人员。服务基层项目人员包括选聘高校毕业生到村任职工作（含社区党建工作组织员、聘用在基层岗位的“两新”组织党建工作组织员）、农村义务教育阶段学校教师特设岗位计划、“三支一扶”计划、大学生志愿服务西部计划项目人员。“服务期满”计算截止日期以2024年9月30日为准","在本单位最低服务年限3年","0774-3886628"]
[31,null,"梧州市万秀区夏郢镇乡村建设综合保障中心","全额拨款","管理人员","管理九级","实名编制",1,"不限专业","本科及以上","学士及以上","18-35周岁",null,"在本单位最低服务年限3年","0774-3886628"]
["合计",{"$nulls":6},{"$f":"SUM(H7:H37)","v":37}]